bitfinex/quotes_ETHUSD_20241119
["timestamp","ask_amount","ask_price","bid_price","bid_amount"]
[1731982443242,3.17083,3153.8,3153.3,0.31216104]
[1731982443543,3.17115,3153.5,3153.3,0.30974156]
[1731982443747,0.04280799,3153.4,3153.3,0.30974156]
[1731982444396,0.04280799,3153.4,3153.1,0.30974156]
[1731982445643,3.21404799,3153.4,3153.1,0.30974156]
[1731982445849,3.1713,3153.3,3152.9,0.30974156]
[1731982446151,0.04276888,3153.2,3152.9,0.30974156]
[1731982446304,3.1713,3153.3,3152.9,0.30974156]
[1731982446508,0.04276888,3153.2,3152.9,0.30974156]
[1731982446734,0.7702,3153.4,3152.9,0.30974156]
[1731982446905,0.04279232,3153.3,3152.9,0.30974156]
[1731982448553,3.17169,3152.9,3152.5,1.07364156]
[1731982448701,4.03127699,3152.8,3152.5,0.30974156]
[1731982449102,3.17189,3152.7,3152.5,0.30974156]
[1731982449350,0.04264118,3152.6,3152.5,0.30974156]
[1731982449915,0.7533,3152.8,3152.5,0.30974156]
[1731982450254,0.04266463,3152.7,3152.5,0.30974156]
[1731982450400,3.17198,3152.6,3152.5,0.30974156]
[1731982450751,3.17215,3152.5,3152.2,0.30974156]
[1731982450922,3.21476661,3152.4,3152.2,0.30974156]
[1731982451611,0.04258661,3152.4,3152.2,0.30974156]
[1731982451817,0.04258661,3152.4,3152.2,0.73590372]
[1731982452014,3.17183,3152.8,3152.3,0.30974156]
[1731982452220,3.23534358,3152.7,3152.3,0.30974156]
[1731982453002,3.17192,3152.7,3152.4,0.30974156]
[1731982453758,0.04262658,3152.6,3152.4,0.30974156]
[1731982453960,0.04262658,3152.6,3152.3,0.30974156]
[1731982454260,3.17208,3152.5,3152.3,0.30974156]
[1731982454558,0.04258077,3152.4,3152.3,0.30974156]
[1731982454853,0.04116141,3152.4,3152.3,0.30974156]
[1731982455160,3.17199,3152.6,3152.3,0.73589272]
[1731982455359,0.04116031,3152.4,3152.2,0.30974156]
[1731982455656,3.17198,3152.6,3152.2,0.73590272]
[1731982456012,0.04115383,3152.5,3152.2,0.73590272]
[1731982456815,3.17199,3152.6,3152.2,0.73590272]
[1731982457059,0.04115291,3152.4,3152.2,0.73590272]
[1731982457211,3.17199,3152.6,3152.2,0.73590272]
[1731982457411,0.04112946,3152.3,3152.2,0.73590272]
[1731982457613,3.17199,3152.6,3152.2,0.73590272]
[1731982457813,0.04112946,3152.3,3152.2,0.73590272]
[1731982458316,3.17199,3152.6,3152.2,0.73590272]
[1731982458516,0.04112946,3152.3,3152.2,0.73590272]
[1731982458730,3.17199,3152.6,3152.2,0.73590272]
[1731982458933,0.04112946,3152.3,3152.2,0.73590272]
[1731982459218,3.17199,3152.6,3152.2,0.73590272]
[1731982459418,0.04112946,3152.3,3152.2,0.73590272]
[1731982459949,3.1719,3152.7,3152.2,0.73590272]
[1731982460253,0.04112763,3152.3,3152.2,0.73590272]
[1731982460452,3.17173,3152.9,3152.4,0.30974156]
[1731982460658,3.17179,3152.8,3152.4,0.30974156]
[1731982461369,3.17173,3152.9,3152.4,3.48191156]
[1731982461662,3.17173,3152.9,3152.4,3.83011472]
[1731982462121,5.46793627,3153.5,3152.4,3.83011472]
[1731982462122,0.8122,3153.5,3153.1,0.30974156]
[1731982462324,3.1712,3153.4,3153.1,0.30974156]
[1731982463539,3.17134,3153.3,3153.1,0.30974156]
[1731982464074,3.17138,3153.2,3152.7,1.11844156]
[1731982464432,3.17134,3153.3,3152.7,1.11844156]
[1731982464649,3.17153,3153.1,3152.7,1.11844156]
[1731982464880,3.17153,3153.1,3152.7,0.80154156]
[1731982464881,2.85463,3153.1,3152.7,0.80154156]
[1731982465181,2.85463,3153.1,3152.5,3.17207]
[1731982465333,2.85463,3153.1,3152.5,3.84132132]
[1731982465538,2.85463,3153.1,3152.6,0.317]
[1731982466476,3.17138,3153.2,3152.6,3.48891]
[1731982468714,0.04133564,3153.1,3152.6,3.48891]
[1731982468910,0.04133564,3153.1,3152.6,4.33402745]
[1731982469916,0.04133564,3153.1,3152.6,4.33402745]
[1731982470313,3.17159,3153.0,3152.6,1.16211745]
[1731982470518,3.23516358,3152.9,3152.7,0.317]
[1731982470724,3.2764527,3152.9,3152.7,0.317]
[1731982471217,3.21302912,3152.9,3152.7,0.317]
[1731982471513,3.21302912,3152.9,3152.4,0.317]
[1731982472903,6.38479912,3152.9,3152.4,0.317]
[1731982473111,3.21302912,3152.9,3152.4,0.317]
[1731982473435,0.04128912,3152.9,3152.6,0.317]
[1731982473588,0.04128912,3152.9,3152.8,0.317]
[1731982473783,4.00238,3153.5,3153.0,0.317]
[1731982473997,3.17118,3153.4,3153.0,0.317]
[1731982474930,3.17118,3153.4,3152.9,0.317]
[1731982475112,3.17128,3153.3,3152.9,0.317]
[1731982475282,4.00238,3153.5,3152.9,0.317]
[1731982475633,3.17071,3153.9,3153.3,0.00012]
[1731982475634,3.17105,3153.6,3153.3,0.00012]
[1731982475925,3.17105,3153.6,3153.3,0.317]
[1731982476294,7.17319,3153.7,3153.3,0.317]
[1731982476793,3.17098,3153.6,3153.3,0.317]
[1731982476997,3.17108,3153.5,3153.3,0.317]
[1731982477789,4.402442,3153.7,3153.3,0.317]
[1731982478084,3.17104,3153.6,3153.3,0.317]
[1731982478285,4.402442,3153.7,3153.3,0.317]
[1731982478692,3.17099,3153.6,3153.3,0.317]
[1731982481289,3.17078,3153.8,3153.4,0.317]
[1731982481623,0.06342358,3153.7,3153.4,0.317]
[1731982482555,3.17078,3153.8,3153.4,0.317]
[1731982483237,1.19639804,3154.1,3153.8,3.48772]
[1731982483419,0.86501588,3154.1,3154.0,0.317]
[1731982483733,1.46476969,3154.4,3154.0,0.317]
[1731982483941,3.80946969,3154.4,3154.0,0.317]
[1731982484290,3.80946969,3154.4,3153.9,0.317]
[1731982484598,3.80946969,3154.4,3154.1,0.317]
[1731982484928,3.17037,3154.2,3154.1,0.317]
[1731982485130,3.99587,3154.2,3154.1,0.317]
[1731982485346,10.074383,3154.2,3154.1,0.317]
[1731982485640,3.17098,3153.6,3153.3,0.317]
[1731982485861,3.23440358,3153.6,3153.3,0.317]
[1731982486615,3.17114,3153.5,3153.3,0.317]
[1731982486813,3.17107,3153.5,3153.4,0.317]
[1731982487792,3.17137,3153.3,3152.9,0.317]
[1731982488845,3.17158,3153.0,3152.5,0.317]
[1731982489335,3.17132,3153.3,3152.5,0.317]
[1731982489548,0.317112,3153.4,3153.0,0.317]
[1731982489706,0.8255,3153.7,3153.0,1.1344]
[1731982489890,3.1712,3153.4,3153.0,1.1344]
[1731982490094,3.23462358,3153.4,3153.0,1.1344]
[1731982491542,3.1712,3153.4,3153.0,1.1344]
[1731982492332,3.1712,3153.4,3152.9,0.317]
[1731982492543,3.17139,3153.2,3152.9,0.317]
[1731982492743,3.17158,3153.0,3152.9,0.317]
[1731982493318,3.17158,3153.0,3152.6,0.317]
[1731982497898,0.32348136,3153.1,3152.6,0.317]
[1731982498574,0.03843059,3153.0,3152.6,0.317]
[1731982500627,0.03843059,3153.0,3152.8,0.317]
[1731982500825,3.92168,3153.2,3152.8,0.317]
[1731982501026,0.03829542,3153.1,3152.8,0.317]
[1731982501266,3.17118,3153.4,3153.0,1.0733]
[1731982501440,3.17083,3153.8,3153.3,0.317]
[1731982501639,3.9709,3153.9,3153.5,0.317]
[1731982501859,3.97074,3154.1,3153.7,0.317]
[1731982502069,4.03416358,3154.1,3153.7,0.317]
[1731982503146,0.06342358,3154.0,3153.7,0.317]
[1731982503368,3.23404358,3154.0,3153.7,0.317]
[1731982504736,0.06342358,3154.0,3153.7,0.317]
[1731982505936,3.17077,3153.9,3153.8,0.317]
[1731982506976,5.46979541,3154.0,3153.2,0.317]
[1731982507159,3.17105,3153.6,3153.2,0.317]
[1731982507357,6.34212,3153.6,3153.2,0.317]
[1731982507549,3.17105,3153.6,3153.2,0.317]
[1731982508479,6.34166,3153.8,3153.2,3.48835]
[1731982508692,3.17096,3153.7,3153.2,0.317]
[1731982509702,3.17079,3153.8,3153.2,3.48837]
[1731982509881,3.17091,3153.7,3153.2,0.317]
[1731982510496,0.06342358,3154.0,3153.2,0.317]
[1731982510787,3.17108,3153.5,3153.2,0.317]
[1731982511147,3.17128,3153.3,3153.0,0.317]
[1731982511347,0.06342358,3153.2,3153.0,0.317]
[1731982511776,6.34264,3153.3,3153.0,0.317]
[1731982511990,0.06342358,3153.2,3153.0,0.317]
[1731982512199,0.06342358,3153.2,3152.8,0.317]
[1731982512387,3.17128,3153.3,3152.8,0.317]
[1731982512589,0.32347036,3153.2,3152.8,0.317]
[1731982513093,3.17112,3153.5,3153.0,1.1174]
[1731982513299,6.28014926,3153.8,3153.0,1.1174]
[1731982513507,0.8062,3153.8,3153.4,0.317]
[1731982513722,0.03841731,3153.7,3153.4,0.317]
[1731982514010,3.1709,3153.7,3153.4,0.317]
[1731982514366,0.0384017,3153.6,3153.2,0.317]
[1731982517325,3.2094317,3153.6,3153.2,0.317]
[1731982517526,0.0384017,3153.6,3153.3,0.317]
[1731982518484,0.0384017,3153.6,3153.1,3.48847]
[1731982518689,3.17108,3153.5,3153.1,0.317]
[1731982518879,3.17138,3153.2,3153.1,0.317]
[1731982519113,3.92348,3153.2,3153.1,0.317]
[1731982519427,3.96180893,3153.2,3153.1,0.317]
[1731982520706,3.96180893,3153.2,3152.3,0.317]
[1731982520707,3.17189,3152.7,3152.3,0.317]
[1731982521103,3.23508358,3153.0,3152.3,0.317]
[1731982521104,0.03820473,3152.6,3152.3,3.4892]
[1731982521302,0.03820473,3152.6,3152.5,0.317]
[1731982521595,0.03819507,3152.6,3152.5,0.317]
[1731982521914,3.17164,3153.0,3152.5,0.317]
[1731982522133,0.03820473,3152.6,3152.5,0.317]
[1731982522441,0.03820473,3152.6,3152.4,0.317]
[1731982522745,3.17164,3153.0,3152.4,0.317]
[1731982522899,0.03818128,3152.5,3152.4,0.317]
[1731982523106,3.17179,3152.8,3152.4,0.317]
[1731982523285,0.03818128,3152.5,3152.4,0.317]
[1731982523594,3.17179,3152.8,3152.4,0.317]
[1731982523801,6.735664,3153.0,3152.4,0.317]
[1731982523998,3.92356,3153.2,3152.6,0.317]
[1731982524200,3.92356,3153.2,3152.4,3.23560231]
[1731982524201,3.92356,3153.2,3152.8,0.317]
[1731982524401,0.03830809,3153.1,3152.8,0.317]
[1731982525856,0.7623,3152.7,3152.4,0.3171]
[1731982525985,0.03819086,3152.6,3152.4,0.3171]
[1731982526504,0.03819086,3152.6,3152.4,3.48928]
[1731982526911,3.17163,3153.0,3152.5,3.48918]
[1731982527112,3.17128,3153.3,3152.8,0.3171]
[1731982527443,3.17128,3153.3,3152.8,4.29177]
[1731982527588,3.17108,3153.5,3152.8,4.29177]
[1731982527789,6.34225,3153.5,3152.8,4.29172]
[1731982528094,3.17068,3153.9,3153.4,1.1413]
[1731982528426,3.17089,3153.7,3153.4,1.1413]
[1731982528735,0.03841651,3153.6,3153.4,1.1413]
[1731982529326,0.03841651,3153.6,3153.5,0.3171]
[1731982533111,3.1708,3153.8,3153.5,0.3171]
[1731982533324,0.03845082,3153.6,3153.5,0.3171]
[1731982534172,0.03836973,3153.6,3153.5,0.3171]
[1731982534540,3.17081,3153.8,3153.5,0.3171]
[1731982534729,0.03837155,3153.6,3153.5,0.3171]
[1731982534931,3.17081,3153.8,3153.5,0.3171]
[1731982535427,0.03841064,3153.7,3153.5,0.3171]
[1731982535654,3.17081,3153.8,3153.5,0.3171]
[1731982535966,0.0384189,3153.7,3153.5,0.3171]
[1731982536362,3.17081,3153.8,3153.5,0.3171]
[1731982536543,0.03841111,3153.6,3153.5,0.3171]
[1731982536739,3.17081,3153.8,3153.5,0.3171]
[1731982536945,0.03841111,3153.6,3153.5,0.3171]
[1731982537185,3.17081,3153.8,3153.5,0.3171]
[1731982537351,0.03841111,3153.6,3153.5,0.3171]
[1731982537557,3.17081,3153.8,3153.5,0.3171]
[1731982538043,0.03844237,3153.7,3153.5,0.3171]
[1731982538282,3.17081,3153.8,3153.5,0.3171]
[1731982538483,3.17068,3153.9,3153.5,0.3171]
[1731982538673,0.03846434,3153.8,3153.5,0.3171]
[1731982539542,0.03846434,3153.8,3153.7,0.3171]
[1731982539877,3.95461,3154.2,3153.7,0.3171]
[1731982540071,3.20907436,3154.1,3153.7,0.3171]
[1731982540381,0.03856436,3154.1,3153.7,0.3171]
[1731982540804,3.20906436,3154.1,3153.7,0.3171]
[1731982541360,3.20906436,3154.1,3153.5,0.3171]
[1731982541562,0.03856436,3154.1,3153.5,0.3171]
[1731982541764,3.17057,3154.0,3153.5,3.48814]
[1731982541963,0.03856436,3154.1,3153.5,3.48814]
[1731982542166,0.03852489,3153.9,3153.8,0.3171]
[1731982542381,0.03854832,3154.0,3153.8,0.3171]
[1731982542552,0.03852489,3153.9,3153.8,3.48786]
[1731982542956,3.17031,3154.3,3153.8,3.48786]
[1731982543297,9.39350432,3154.7,3154.1,0.3171]
[1731982543446,0.03860174,3154.2,3154.1,0.3171]
[1731982543646,3.9245,3154.9,3154.3,0.3171]
[1731982543903,0.03870825,3154.8,3154.3,0.3171]
[1731982544064,0.03870825,3154.8,3154.5,0.3171]
[1731982544250,4.05220083,3155.0,3154.7,0.3171]
[1731982544452,0.03745117,3154.9,3154.7,0.3171]
[1731982545350,3.20713117,3154.9,3154.7,0.3171]
[1731982546649,3.16977,3154.8,3154.7,0.3171]
[1731982546847,3.27062133,3154.8,3154.3,0.3171]
[1731982547050,3.20719775,3154.8,3154.3,0.3171]
[1731982547979,0.03742775,3154.8,3154.3,0.3171]
[1731982548182,0.03742775,3154.8,3153.8,3.17074]
[1731982548183,0.7984,3154.6,3154.4,0.3171]
[1731982548601,3.20751749,3154.5,3154.4,0.3171]
[1731982548899,4.09574107,3154.5,3154.4,0.3171]
[1731982549098,4.03231749,3154.5,3154.4,0.3171]
[1731982549305,3.17031,3154.3,3153.8,0.3171]
[1731982549505,6.2825137,3155.2,3154.7,0.3171]
[1731982549666,6.69445934,3155.5,3154.7,0.3171]
[1731982549667,0.8248,3155.4,3154.9,0.3171]
[1731982549998,9.3995537,3155.9,3155.3,0.3171]
[1731982550207,0.06342358,3155.8,3155.3,0.3171]
[1731982550388,3.16894,3155.7,3155.3,0.3171]
[1731982550699,0.06342358,3155.6,3155.3,0.3171]
[1731982551082,0.06342358,3155.6,3155.0,0.3171]
[1731982551258,0.06342358,3155.6,3155.2,0.3171]
[1731982551457,0.06342358,3155.6,3155.2,3.48646]
[1731982551700,0.06342358,3155.8,3155.2,3.48646]
[1731982552078,3.23219358,3155.8,3155.2,3.48646]
[1731982552403,0.06342358,3155.8,3155.2,0.3171]
[1731982552561,3.16888,3155.7,3155.2,0.3171]
[1731982552768,0.06342358,3155.6,3155.2,3.48646]
[1731982552968,3.16874,3155.9,3155.4,0.3171]
[1731982554612,4.47817114,3156.1,3155.5,3.16904]
[1731982554850,0.33124936,3156.1,3155.5,3.16904]
[1731982554979,0.33124936,3156.1,3155.3,3.90862]
[1731982555303,3.16829,3156.3,3155.7,3.16884]
[1731982555523,0.03287025,3156.2,3155.7,3.16884]
[1731982555723,0.03287025,3156.2,3155.8,3.16876]
[1731982556017,3.16818,3156.4,3155.9,0.7394]
[1731982556200,0.03284685,3156.1,3155.9,0.7394]
[1731982556373,3.79719626,3156.5,3155.9,3.90798]
[1731982556571,0.03305393,3156.0,3155.9,3.90798]
[1731982556771,3.79719626,3156.5,3155.9,3.90798]
[1731982557280,0.03314749,3156.4,3155.9,3.90798]
[1731982557816,3.20131749,3156.4,3155.9,0.7394]
[1731982557969,0.03314749,3156.4,3155.9,0.7394]
[1731982558572,0.42252422,3156.4,3155.9,0.7394]
[1731982558773,3.16852,3156.1,3155.5,1.0565]
[1731982558978,3.26487768,3156.3,3155.6,3.16888]
[1731982559190,0.03307689,3156.0,3155.6,3.16888]
[1731982559405,3.16848,3156.1,3155.5,4.22555]
[1731982559611,0.03310526,3155.9,3155.5,1.0565]
[1731982559872,0.03308187,3155.8,3155.5,4.22555]
[1731982560203,3.16849,3156.1,3155.5,4.22555]
[1731982560521,3.16837,3156.2,3155.6,3.16896]
[1731982560721,3.16829,3156.3,3155.6,3.16896]
[1731982560876,0.03314731,3156.1,3155.6,3.16896]
[1731982561082,3.16829,3156.3,3155.6,3.908422]
[1731982561285,0.0331707,3156.2,3155.7,3.16885]
[1731982561514,0.0331707,3156.2,3155.6,3.908422]
[1731982562245,0.0331707,3156.2,3155.9,3.16865]
[1731982562422,0.0331707,3156.2,3156.0,0.7394]
[1731982562729,3.91799,3156.7,3156.0,3.90795]
[1731982562928,0.03314731,3156.1,3156.0,4.22505]
[1731982563137,0.16508592,3156.8,3156.0,4.647555]
[1731982563314,3.16777,3156.8,3156.2,3.16835]
[1731982563522,0.03328763,3156.7,3156.2,3.16835]
[1731982563720,0.03328763,3156.7,3156.1,0.3171]
[1731982563918,3.16757,3157.0,3156.4,3.90753]
[1731982564085,0.03317907,3156.6,3156.4,0.7394]
[1731982564289,3.484327,3157.0,3156.4,3.90755]
[1731982564528,0.03324922,3156.9,3156.4,3.90755]
[1731982564734,0.03324922,3156.9,3156.5,0.3171]
[1731982565435,3.16677,3157.8,3156.5,0.3171]
[1731982565436,3.93085,3157.9,3156.9,0.3171]
[1731982565755,3.167,3157.6,3157.1,0.3171]
[1731982566096,3.559875,3157.8,3157.1,3.48449]
[1731982566298,3.16694,3157.7,3157.1,3.48449]
[1731982566602,3.559875,3157.8,3157.1,3.48452]
[1731982566820,3.16679,3157.8,3157.3,0.3171]
[1731982567202,3.16704,3157.6,3157.3,0.3171]
[1731982567402,0.64932105,3158.3,3157.3,0.3171]
[1731982567403,3.16652,3158.1,3157.3,3.48428]
[1731982567696,0.47431132,3158.3,3157.4,0.3804377]
[1731982567911,3.16666,3157.9,3157.4,0.3804377]
[1731982568120,3.16646,3158.1,3157.4,3.97621387]
[1731982568299,3.64059132,3158.3,3157.8,0.7394]
[1731982568518,3.64059132,3158.3,3157.9,0.3171]
[1731982568720,3.3095741,3158.3,3157.9,0.3171]
[1731982568921,0.06342358,3158.2,3157.9,0.3171]
[1731982569298,3.16656,3158.0,3157.9,0.3171]
[1731982569498,3.16652,3158.1,3157.5,0.7394]
[1731982569499,3.16652,3158.1,3157.6,0.3171]
[1731982570122,3.3095641,3158.3,3157.6,0.3171]
[1731982570327,3.16643,3158.2,3157.6,3.48405]
[1731982570548,3.16643,3158.2,3157.7,0.7785115]
[1731982571151,3.3095641,3158.3,3157.7,3.9453515]
[1731982571459,3.3095641,3158.3,3157.8,3.16667]
[1731982571460,0.1432941,3158.3,3157.8,3.16667]
[1731982571661,0.1432941,3158.3,3157.9,1.14025117]
[1731982572924,0.1432941,3158.3,3157.9,4.62401117]
[1731982573126,0.1432941,3158.3,3157.9,4.22316]
[1731982573323,0.16494961,3159.2,3158.6,3.16587]
[1731982573535,0.8072,3159.4,3158.8,0.3171]
[1731982573536,3.1652,3159.4,3158.8,0.3171]
[1731982573735,3.16508,3159.5,3158.8,0.3171]
[1731982573937,3.1653,3159.3,3158.8,0.3171]
[1731982574235,3.16508,3159.5,3158.8,3.48284]
[1731982574433,3.16508,3159.5,3159.0,0.3171]
[1731982574641,3.16508,3159.5,3158.9,0.738803]
[1731982574868,3.16517,3159.4,3158.9,0.738803]
[1731982575347,3.16526,3159.3,3158.9,0.738803]
[1731982575533,3.16546,3159.1,3158.9,0.738803]
[1731982575871,3.16575,3158.8,3158.7,0.7394]
[1731982576038,0.7943,3159.1,3157.7,3.6282315]
[1731982576253,0.06342358,3159.0,3157.8,1.10222315]
[1731982576539,0.06342358,3159.0,3157.8,0.7394]
[1731982576540,3.16599,3158.6,3157.8,0.7394]
[1731982576953,3.16623,3158.4,3157.8,0.7394]
[1731982579400,3.1663,3158.3,3157.8,0.7394]
[1731982579568,3.16658,3158.0,3157.8,0.7394]
[1731982580005,3.16666,3158.0,3157.8,0.7394]
[1731982580473,3.16637,3158.2,3157.8,0.7394]
[1731982580670,3.16661,3158.0,3157.8,0.7394]
[1731982580907,3.16646,3158.1,3157.8,0.7394]
[1731982580908,3.16666,3157.9,3157.8,0.7394]
[1731982581206,3.16676,3157.8,3157.4,0.7394]
[1731982581404,3.16705,3157.6,3157.4,0.7394]
[1731982581915,3.16686,3157.8,3157.4,0.7394]
[1731982582409,3.16686,3157.7,3157.4,0.7394]
[1731982582781,3.16697,3157.6,3157.4,0.7394]
[1731982582963,3.16706,3157.5,3156.8,0.7394]
[1731982583319,0.823,3158.3,3156.8,0.7394]
[1731982583320,3.16676,3157.9,3157.1,3.90679]
[1731982583467,3.16676,3157.8,3157.2,0.06333863]
[1731982583808,3.16677,3157.8,3157.2,0.06333863]
[1731982584104,0.88642358,3158.3,3157.1,0.7394]
[1731982584407,3.16712,3157.5,3157.1,1.130105]
[1731982584614,3.16713,3157.5,3157.1,0.7394]
[1731982584768,3.16713,3157.5,3157.2,0.3171]
[1731982585080,3.16716,3157.4,3157.2,0.3171]
[1731982585707,3.16726,3157.3,3157.2,0.3171]
[1731982585915,3.16743,3157.2,3156.9,0.3171]
[1731982586092,3.16756,3157.0,3156.9,0.3171]
[1731982587877,3.16738,3157.2,3156.9,0.3171]
[1731982588461,3.16754,3157.1,3156.9,0.3171]
[1731982588667,3.16756,3157.0,3156.9,0.3171]
[1731982589109,3.19952423,3157.0,3156.9,0.3171]
[1731982590010,3.19952423,3157.0,3156.7,0.3171]
[1731982590172,3.16776,3156.8,3156.7,0.3171]
[1731982590711,3.19966942,3156.8,3156.7,0.3171]
[1731982591170,0.03190942,3156.8,3156.3,0.3171]
[1731982591364,3.16824,3156.4,3156.3,0.3171]
[1731982594928,2.85124,3156.4,3156.3,0.3171]
[1731982595783,3.16828,3156.3,3156.0,0.3171]
[1731982596022,0.7645,3157.1,3156.0,0.3171]
[1731982596023,3.16846,3156.1,3156.0,0.3171]
[1731982596432,3.23188358,3156.1,3156.0,0.3171]
[1731982596792,3.16876,3155.8,3155.7,0.3171]
[1731982598892,3.16906,3155.6,3155.4,0.3171]
[1731982599254,3.16906,3155.5,3155.4,0.3171]
[1731982600032,3.16919,3155.4,3155.1,0.3171]
[1731982600260,3.16927,3155.3,3155.1,0.69737801]
[1731982600425,3.16937,3155.2,3155.1,0.3171]
[1731982600747,3.16927,3155.3,3155.1,0.3171]
[1731982600748,3.16937,3155.3,3155.1,0.3171]
[1731982600952,3.16937,3155.3,3155.2,0.3171]
[1731982601307,3.16916,3155.5,3155.2,0.3171]
[1731982602023,3.16916,3155.5,3155.0,0.3171]
[1731982602217,3.16916,3155.5,3155.2,0.3171]
[1731982604932,3.16916,3155.5,3155.3,0.3171]
[1731982605249,3.16917,3155.4,3155.3,0.3171]
[1731982606043,3.16947,3155.1,3154.8,0.3171]
[1731982606261,3.16946,3155.2,3154.8,0.3171]
[1731982607817,3.16918,3155.4,3154.8,0.3171]
[1731982608050,3.169,3155.6,3154.8,0.3171]
[1731982608229,3.16889,3155.7,3155.4,0.3171]
[1731982608964,0.8049,3156.2,3155.3,0.7394]
[1731982608965,3.16806,3156.5,3156.1,0.3171]
[1731982609118,3.16806,3156.5,3156.1,0.739616]
[1731982609465,3.16806,3156.5,3156.1,0.3171]
[1731982612061,3.16833,3156.3,3156.1,0.3171]
[1731982614061,3.16833,3156.3,3155.7,3.16878]
[1731982614062,3.16833,3156.3,3155.8,1.0565]
[1731982614572,3.16833,3156.3,3155.8,4.22526]
[1731982614857,3.16806,3156.5,3155.8,4.22526]
[1731982615165,3.16791,3156.7,3156.2,0.3171]
[1731982615457,0.17506084,3157.6,3156.5,3.48514]
[1731982615458,3.16748,3157.1,3156.5,3.48514]
[1731982615665,3.16748,3157.1,3156.7,0.3171]
[1731982615872,3.19939518,3157.1,3156.7,0.3171]
[1731982616073,0.776,3157.2,3156.7,0.3171]
[1731982616366,3.16728,3157.3,3156.7,3.48494]
[1731982616532,3.16728,3157.3,3156.7,3.8756994]
[1731982616864,3.205,3157.3,3156.7,3.8756994]
[1731982617524,3.205,3157.3,3156.9,0.3171]
[1731982618827,3.16756,3157.0,3156.9,0.3171]
[1731982619062,3.16779,3156.8,3156.5,0.3171]
[1731982619720,0.7521,3156.9,3156.2,0.3171]
[1731982620061,3.1681,3156.5,3156.2,0.3171]
[1731982620467,3.1681,3156.5,3156.1,0.42283]
[1731982620757,3.168,3156.6,3156.2,0.3171]
[1731982620959,3.16788,3156.7,3156.2,0.3171]
[1731982621185,3.16808,3156.5,3156.2,0.3171]
[1731982621632,3.16818,3156.4,3156.2,0.3171]
[1731982622922,3.16803,3156.6,3156.2,0.3171]
[1731982623586,3.1676,3157.0,3156.2,0.3171]
[1731982623868,0.8044,3157.2,3156.7,0.3171]
[1731982623869,3.16746,3157.1,3156.7,0.3171]
[1731982624083,5.92211907,3157.7,3156.9,0.3171]
[1731982624084,0.8044,3157.6,3156.9,0.3171]
[1731982624245,0.03190634,3157.1,3156.9,0.3171]
[1731982624577,0.03190634,3157.1,3156.9,0.707875]
[1731982624578,0.02962732,3157.1,3156.9,0.707875]
[1731982625069,3.9714,3157.6,3156.8,3.48483]
[1731982625277,0.03190634,3157.1,3156.8,3.48483]
[1731982625443,7.13843,3157.6,3156.9,0.06334684]
[1731982625647,0.02962732,3157.1,3157.0,0.3171]
[1731982625843,3.9714,3157.6,3157.0,0.3171]
[1731982626059,0.03190634,3157.1,3157.0,0.67190868]
[1731982626229,3.16698,3157.6,3157.0,3.48466]
[1731982626573,0.03201425,3157.5,3157.0,3.48466]
[1731982626771,0.03201425,3157.5,3156.8,0.38043884]
[1731982627071,0.03201425,3157.5,3157.2,0.3171]
[1731982627283,3.16697,3157.6,3157.2,0.3171]
[1731982627574,1.11075811,3158.2,3157.3,3.90723]
[1731982627869,0.06342358,3158.1,3157.5,0.3171]
[1731982628075,3.16696,3157.6,3157.5,0.3171]
[1731982628278,3.94676,3157.6,3157.5,0.3171]
[1731982628776,3.94676,3157.6,3156.3,3.1682]
[1731982628777,3.16776,3156.8,3156.7,0.3171]
[1731982629735,2.85076,3156.8,3156.7,0.3171]
[1731982629973,2.85076,3156.8,3156.4,0.3171]
[1731982630978,3.16799,3156.6,3156.1,0.3171]
[1731982632063,3.16799,3156.6,3155.8,0.65777197]
[1731982632064,3.16821,3156.4,3155.9,0.3171]
[1731982632270,6.33602,3156.6,3155.9,0.3171]
[1731982632443,3.16807,3156.5,3155.9,4.2001092]
[1731982633483,3.16807,3156.5,3155.9,7.3686992]
[1731982633883,3.16807,3156.5,3155.9,4.2000592]
[1731982634089,3.16807,3156.5,3156.1,0.3171]
[1731982635069,3.16793,3156.7,3156.1,0.3171]
[1731982635382,3.16781,3156.8,3156.1,0.3171]
[1731982635692,3.16802,3156.6,3156.1,0.3171]
[1731982636401,3.95279,3157.0,3156.3,0.3171]
[1731982636554,3.16759,3157.0,3156.5,0.3171]
[1731982636914,3.16782,3156.8,3156.5,0.4234]
[1731982637761,3.16735,3157.3,3156.7,0.3171]
[1731982637923,3.16735,3157.3,3156.9,0.3171]
[1731982638218,3.16662,3158.0,3156.8,0.41184709]
[1731982638219,3.16673,3157.9,3157.2,0.4234]
[1731982638370,3.16664,3158.0,3157.2,3.59069]
[1731982638573,3.16676,3157.8,3157.4,0.3171]
[1731982638986,3.16696,3157.6,3157.4,0.3171]
[1731982639509,3.16696,3157.6,3157.3,0.3171]
[1731982640316,3.1666,3158.0,3157.3,0.7140589]
[1731982640483,3.1666,3158.0,3157.5,0.3171]
[1731982640869,3.16638,3158.2,3157.6,3.16695]
[1731982641068,3.647998,3158.2,3157.9,0.3171]
[1731982641300,0.481618,3158.2,3157.9,0.3171]
[1731982642120,3.647978,3158.2,3157.9,0.3171]
[1731982642877,3.16636,3158.2,3157.9,0.3171]
[1731982643082,3.16656,3158.0,3157.9,0.3171]
[1731982643310,3.16636,3158.2,3157.9,0.3171]
[1731982643525,3.16656,3158.0,3157.7,0.3171]
[1731982644526,3.16656,3158.0,3157.6,0.3171]
[1731982645288,3.1664,3158.2,3157.6,0.3171]
[1731982645610,3.16647,3158.1,3157.6,0.3171]
[1731982645926,3.1664,3158.2,3157.6,0.3171]
[1731982646293,3.16653,3158.1,3157.6,0.3171]